bitfinex-derivatives/quotes_BTCF0:USTF0_20250424
["timestamp","ask_amount","ask_price","bid_price","bid_amount"]
[1745507754993,0.2087908,93436.0,93435.0,0.607792]
[1745507755400,0.1018,93436.0,93435.0,0.607792]
[1745507755798,0.0978,93436.0,93435.0,0.607792]
[1745507756299,0.007,93436.0,93435.0,0.607792]
[1745507756705,0.004,93436.0,93435.0,0.607792]
[1745507756897,0.003,93436.0,93435.0,0.608792]
[1745507757501,0.003,93436.0,93435.0,0.468792]
[1745507757696,0.1099908,93436.0,93435.0,0.608792]
[1745507758003,0.003,93436.0,93435.0,0.608792]
[1745507758205,0.0468,93439.0,93435.0,0.5018]
[1745507758406,0.1069908,93436.0,93435.0,0.3618]
[1745507759308,0.1069908,93436.0,93435.0,0.3608]
[1745507759895,0.71782401,93436.0,93423.0,0.3608]
[1745507760111,0.1591301,93433.0,93411.0,0.3608]
[1745507760294,0.1070183,93412.0,93411.0,0.4678195]
[1745507760505,0.1070183,93412.0,93411.0,0.4908]
[1745507760703,0.1070183,93412.0,93411.0,0.3608]
[1745507761205,0.2439183,93412.0,93411.0,0.5008]
[1745507761407,0.2439183,93412.0,93411.0,0.3608]
[1745507761606,0.2439183,93412.0,93411.0,0.5108]
[1745507762407,0.2449183,93412.0,93411.0,0.5168]
[1745507762615,0.2449183,93412.0,93411.0,0.3728]
[1745507762915,0.2449183,93412.0,93411.0,0.5128]
[1745507764606,0.2449183,93412.0,93411.0,0.3728]
[1745507764998,0.2449183,93412.0,93411.0,0.5228]
[1745507765413,0.2449183,93412.0,93411.0,0.6298195]
[1745507765803,0.2449183,93412.0,93411.0,0.5228]
[1745507768013,0.2449183,93412.0,93411.0,0.3728]
[1745507768202,0.107024,93407.0,93406.0,7.0]
[1745507768408,0.467824,93407.0,93406.0,2.78483483]
[1745507768707,0.824884,93407.0,93406.0,2.78483483]
[1745507769007,0.824884,93407.0,93406.0,2.72643073]
[1745507769210,0.824884,93407.0,93406.0,2.57294873]
[1745507769415,0.84228153,93407.0,93406.0,1.84293943]
[1745507769711,1.70685657,93407.0,93406.0,1.02126363]
[1745507769896,1.70685657,93407.0,93406.0,0.82117613]
[1745507770103,0.1070321,93400.0,93377.0,0.00809902]
[1745507770303,0.107047,93387.0,93376.0,0.37803374]
[1745507770504,0.467847,93387.0,93376.0,0.3608]
[1745507770700,0.574927,93387.0,93376.0,0.3608]
[1745507771115,1.166927,93387.0,93365.0,0.0442]
[1745507771301,0.0535325,93372.0,93364.0,0.21433423]
[1745507771503,0.1070722,93365.0,93364.0,0.21433423]
[1745507772008,0.1953722,93365.0,93364.0,0.21433423]
[1745507772519,0.1070745,93363.0,93362.0,0.02543777]
[1745507772707,0.1070768,93361.0,93360.0,0.1070772]
[1745507772903,0.3608,93377.0,93368.0,0.0535343]
[1745507773209,0.0756,93375.0,93371.0,0.1070653]
[1745507773411,0.0756,93375.0,93371.0,0.2470653]
[1745507773601,0.0756,93375.0,93374.0,0.1070619]
[1745507773804,0.0756,93375.0,93374.0,0.2270619]
[1745507774619,0.1070435,93391.0,93388.0,0.1070458]
[1745507774814,0.0756,93394.0,93393.0,0.1070401]
[1745507775109,0.0756,93395.0,93394.0,0.1070333]
[1745507775313,0.1605543,93398.0,93397.0,0.1605489]
[1745507775509,0.2361543,93398.0,93397.0,0.1605489]
[1745507775909,0.0756,93398.0,93397.0,0.1605489]
[1745507776110,0.1826344,93398.0,93397.0,0.2905489]
[1745507776304,0.1886344,93398.0,93397.0,0.30917222]
[1745507776509,0.0816,93398.0,93397.0,0.17917222]
[1745507776709,0.0816,93398.0,93397.0,0.31917222]
[1745507777804,0.0876,93398.0,93397.0,0.31017222]
[1745507779821,0.1946344,93398.0,93397.0,0.31017222]
[1745507780212,0.0876,93398.0,93397.0,0.31017222]
[1745507780918,0.012,93398.0,93397.0,0.31017222]
[1745507781219,0.012,93398.0,93397.0,0.52217222]
[1745507784221,0.012,93398.0,93397.0,0.35017222]
[1745507785124,0.012,93398.0,93397.0,0.52217222]
[1745507785415,0.007,93398.0,93397.0,0.52117222]
[1745507786016,0.007,93398.0,93397.0,0.56877222]
[1745507786219,0.003,93398.0,93397.0,0.39577222]
[1745507786518,0.1100344,93398.0,93397.0,0.11874052]
[1745507786720,0.1100344,93398.0,93397.0,0.01762332]
[1745507786926,0.1070355,93397.0,93396.0,0.172]
[1745507787118,0.1070355,93397.0,93389.0,0.0475]
[1745507787119,0.1070493,93385.0,93384.0,0.3608]
[1745507787722,0.1070676,93369.0,93368.0,0.1070681]
[1745507787915,0.1070676,93369.0,93368.0,0.1545681]
[1745507788223,0.1070676,93369.0,93368.0,0.01775614]
[1745507788421,0.07556,93374.0,93366.0,0.3608]
[1745507788617,0.12206,93386.0,93385.0,0.1070493]
[1745507788822,0.2291081,93386.0,93385.0,0.2370493]
[1745507789011,0.2291081,93386.0,93385.0,0.13]
[1745507789212,0.2291081,93386.0,93385.0,0.1070493]
[1745507789625,0.1070493,93385.0,93384.0,0.3608]
[1745507790924,0.006,93386.0,93385.0,0.1070493]
[1745507791223,0.003,93386.0,93385.0,0.2731493]
[1745507791416,0.003,93386.0,93385.0,0.3193493]
[1745507791820,0.003,93386.0,93385.0,0.4264333]
[1745507792020,0.0756,93391.0,93390.0,0.1070435]
[1745507792326,0.0756,93391.0,93390.0,0.2470435]
[1745507793321,0.0766,93391.0,93390.0,0.2470435]
[1745507793716,0.1836424,93391.0,93390.0,0.2470435]
[1745507793910,0.0766,93391.0,93390.0,0.2470435]
[1745507794524,0.0796,93391.0,93390.0,0.2470435]
[1745507794925,0.1866424,93391.0,93390.0,0.2470435]
[1745507795118,0.0806,93391.0,93390.0,0.2470435]
[1745507795518,0.005,93391.0,93390.0,0.2470435]
[1745507796623,0.004,93391.0,93390.0,0.2470435]
[1745507797724,0.002,93391.0,93390.0,0.2470435]
[1745507798123,0.004,93391.0,93390.0,0.2470435]
[1745507798823,1e-07,93391.0,93390.0,0.35411949]
[1745507799322,0.182616,93414.0,93413.0,0.1070172]
[1745507799522,0.182616,93414.0,93413.0,0.2470172]
[1745507799918,0.182616,93414.0,93413.0,0.3427172]
[1745507800429,0.182616,93414.0,93413.0,0.35085975]
[1745507800620,0.0756,93414.0,93413.0,0.35085975]
[1745507800817,0.0756,93414.0,93413.0,0.30385975]
[1745507801017,1e-07,93417.0,93416.0,0.1070137]
[1745507801231,1e-07,93417.0,93416.0,0.7248617]
[1745507801430,1e-07,93417.0,93416.0,0.74125884]
[1745507802230,1e-07,93417.0,93416.0,0.91325884]
[1745507802530,1e-07,93417.0,93416.0,0.91525884]
[1745507803322,0.0040001,93417.0,93416.0,0.91525884]
[1745507803522,0.1069961,93432.0,93431.0,0.1069966]
[1745507803724,0.1069961,93432.0,93431.0,0.5977966]
[1745507805128,0.1089961,93432.0,93431.0,0.5977966]
[1745507805825,0.1099961,93432.0,93431.0,0.2369966]
[1745507806128,0.1099961,93432.0,93425.0,0.0535016]
[1745507806129,0.107016,93414.0,93413.0,0.36894255]
[1745507806329,0.1605303,93412.0,93411.0,0.1070185]
[1745507807922,0.0992088,93413.0,93400.0,0.3608]
[1745507808131,0.1070309,93401.0,93400.0,0.37724582]
[1745507808326,0.1070309,93401.0,93400.0,0.50724582]
[1745507808831,0.1070309,93401.0,93400.0,0.48427792]
[1745507809029,0.1070309,93401.0,93400.0,0.61427792]
[1745507809218,0.1968309,93401.0,93400.0,0.62434099]
[1745507809626,0.1968309,93401.0,93400.0,0.62234099]
[1745507809823,0.1968309,93401.0,93400.0,0.62734099]
[1745507810331,0.1978309,93401.0,93400.0,0.38186307]
[1745507810526,0.1978309,93401.0,93400.0,0.39802492]
[1745507811331,0.1978309,93401.0,93400.0,0.60505702]
[1745507811633,0.1080309,93401.0,93400.0,0.60505702]
[1745507812225,0.1080309,93401.0,93400.0,0.65355702]
[1745507812530,0.1520309,93401.0,93400.0,0.65355702]
[1745507813024,0.1520309,93401.0,93400.0,0.49802492]
[1745507814531,0.1520309,93401.0,93400.0,0.03722492]
[1745507815628,0.1510309,93401.0,93400.0,0.02922492]
[1745507815828,0.1550309,93401.0,93400.0,0.02422492]
[1745507816029,0.1070344,93398.0,93397.0,0.1070355]
[1745507816529,0.1070378,93395.0,93394.0,0.0471]
[1745507816738,0.1070378,93395.0,93394.0,0.19369795]
[1745507817330,0.1070378,93395.0,93394.0,0.06369795]
[1745507817939,0.1070378,93395.0,93394.0,0.17073685]
[1745507818334,0.1080378,93395.0,93394.0,0.02459893]
[1745507818532,0.107047,93387.0,93386.0,0.00107082]
[1745507819439,0.559247,93387.0,93386.0,0.00107082]
[1745507819739,0.559247,93387.0,93386.0,0.00407082]
[1745507820127,0.198447,93387.0,93386.0,0.00407082]
[1745507821040,0.151747,93387.0,93386.0,0.24922545]
[1745507821535,0.151747,93387.0,93386.0,0.14217735]
[1745507821742,0.151747,93387.0,93386.0,0.24922545]
[1745507822527,0.151747,93387.0,93386.0,0.25022545]
[1745507822933,0.2044596,93395.0,93394.0,0.1070389]
[1745507823233,0.2044596,93395.0,93394.0,0.2570389]
[1745507824041,0.0483,93401.0,93400.0,0.1070321]
[1745507824342,0.1519309,93401.0,93400.0,0.6913476]
[1745507824832,0.1070401,93393.0,93392.0,0.3608]
[1745507825038,0.1605681,93390.0,93389.0,0.0535199]
[1745507825329,0.1605681,93390.0,93389.0,0.1935199]
[1745507825540,0.2140904,93390.0,93389.0,0.3005573]
[1745507826733,0.2140904,93390.0,93389.0,0.1935199]
[1745507826939,0.107047,93387.0,93386.0,0.00917735]
[1745507827133,0.467847,93387.0,93386.0,0.00917735]
[1745507827335,0.543407,93387.0,93386.0,0.00107082]
[1745507827535,0.0535311,93374.0,93364.0,0.3608]
[1745507827837,0.1070653,93371.0,93370.0,0.01800623]
[1745507828039,0.1070653,93371.0,93370.0,0.12507273]
[1745507828343,0.3009971,93373.0,93372.0,0.1070642]
[1745507828929,0.1939318,93373.0,93372.0,0.1070642]
[1745507829128,0.1939318,93373.0,93372.0,0.2030642]
[1745507829536,0.1949318,93373.0,93372.0,0.2090642]
[1745507829732,0.1005318,93373.0,93372.0,0.2090642]
[1745507830340,0.1005318,93373.0,93372.0,0.2130642]
[1745507831643,0.1005318,93373.0,93372.0,0.106]
[1745507831839,0.1005318,93373.0,93372.0,0.01]
[1745507832344,0.1460318,93373.0,93372.0,0.01]
[1745507832839,0.1460318,93373.0,93372.0,0.1170642]
[1745507833038,0.1460318,93373.0,93372.0,0.01]
[1745507834048,0.1460318,93373.0,93372.0,0.1170642]
[1745507834548,0.1460318,93373.0,93372.0,0.2270642]
[1745507834940,0.1460318,93373.0,93372.0,0.01]
[1745507836044,0.1460318,93373.0,93372.0,0.00707072]
[1745507836450,0.2531278,93373.0,93372.0,0.00707072]
[1745507836641,0.7531278,93373.0,93372.0,0.00707072]
[1745507837550,0.7531278,93373.0,93372.0,0.00607072]
[1745507838752,0.7531278,93373.0,93372.0,0.007]
[1745507838951,0.7531278,93373.0,93372.0,1e-07]
[1745507840143,0.1070814,93357.0,93353.0,0.01646081]
[1745507840348,0.1070814,93357.0,93354.0,0.1070844]
[1745507840543,0.1070814,93357.0,93354.0,0.1537844]
[1745507840746,0.2001814,93357.0,93355.0,0.0467]
[1745507841438,0.2001814,93357.0,93356.0,0.00607116]
[1745507842242,0.2011814,93357.0,93356.0,0.01107116]
[1745507842450,0.3082974,93357.0,93356.0,6e-08]
[1745507843046,0.8082974,93357.0,93356.0,6e-08]
[1745507843444,0.1070871,93352.0,93351.0,0.0053561]
[1745507843649,0.4678871,93352.0,93351.0,0.0053561]
[1745507843948,0.5750111,93352.0,93351.0,0.0053561]
[1745507844757,1.0750111,93352.0,93351.0,0.0063561]
[1745507845156,0.9678871,93352.0,93351.0,0.0063561]
[1745507845454,0.501,93352.0,93351.0,0.4752443]
[1745507845758,0.6080871,93352.0,93351.0,0.8652443]
[1745507845951,0.1080871,93352.0,93351.0,0.6152443]
[1745507846451,0.1080871,93352.0,93351.0,0.7073443]
[1745507846749,0.1080871,93352.0,93351.0,0.4602561]
[1745507847255,0.4688871,93352.0,93351.0,0.0073561]
[1745507847452,0.5151871,93352.0,93351.0,0.0073561]
[1745507848054,0.6080871,93352.0,93351.0,0.2044443]
[1745507848260,0.6080871,93352.0,93351.0,0.0973561]
[1745507848554,0.9688871,93352.0,93351.0,0.0073561]
[1745507848746,1.1240111,93352.0,93351.0,0.0073561]
[1745507850047,1.0168871,93352.0,93351.0,0.0073561]
[1745507851754,1.3740111,93352.0,93351.0,1e-07]
[1745507851953,0.1071158,93327.0,93326.0,0.00107151]
[1745507852555,0.1530158,93327.0,93326.0,0.00107151]
[1745507852947,0.6530158,93327.0,93326.0,0.00107151]
[1745507853254,0.6993158,93327.0,93326.0,0.00307151]
[1745507854453,0.6993158,93327.0,93326.0,0.00107151]
[1745507854454,0.6983158,93327.0,93326.0,0.00107151]
[1745507854652,0.6993158,93327.0,93326.0,0.00207151]
[1745507855455,0.6534158,93327.0,93326.0,0.10918841]
[1745507855658,0.6081158,93327.0,93326.0,0.22918841]
[1745507856047,0.6081158,93327.0,93326.0,0.00207151]
[1745507856247,0.6081158,93327.0,93326.0,0.09747151]
[1745507856451,0.1081158,93327.0,93326.0,0.20458841]
[1745507858355,0.1081158,93327.0,93326.0,0.09747151]
[1745507858756,0.1550158,93327.0,93326.0,0.20458841]
[1745507859249,0.1550158,93327.0,93326.0,0.09747151]
[1745507859646,0.1081158,93327.0,93326.0,0.09747151]
[1745507859853,0.4689158,93327.0,93326.0,0.09747151]
[1745507860147,0.4689158,93327.0,93326.0,0.00207151]
[1745507860351,0.6045158,93327.0,93326.0,0.00207151]
[1745507861259,1.1045158,93327.0,93326.0,0.00207151]
[1745507861950,1.1035158,93327.0,93326.0,0.00107151]
[1745507862155,1.1055158,93327.0,93326.0,0.00207151]
[1745507863349,1.1075158,93327.0,93326.0,0.00207151]
[1745507865461,1.1075158,93327.0,93326.0,1e-08]
[1745507865650,1.12244217,93327.0,93326.0,1e-08]
[1745507865960,1.2146678,93327.0,93326.0,1e-08]
[1745507867456,0.504,93327.0,93326.0,0.10711691]
[1745507867663,0.57956,93327.0,93326.0,0.25711691]
[1745507867960,0.1866758,93327.0,93326.0,0.25711691]
[1745507868554,0.1866758,93327.0,93326.0,0.34611691]
[1745507868750,0.1866758,93327.0,93326.0,0.23900001]
[1745507868960,0.1866758,93327.0,93326.0,0.08900001]
[1745507869962,0.6866758,93327.0,93326.0,1e-08]
[1745507870166,0.8261758,93327.0,93326.0,1e-08]
[1745507870663,0.7331758,93327.0,93326.0,1e-08]
[1745507877368,0.74817,93327.0,93326.0,1e-08]
[1745507879165,0.1071273,93317.0,93316.0,0.0484]
[1745507879762,0.0535667,93312.0,93305.0,0.3608]
[1745507879963,0.1071365,93309.0,93308.0,0.0939]
[1745507880267,0.1071365,93309.0,93308.0,0.1039]
[1745507880973,0.4679365,93309.0,93308.0,0.1039]
[1745507881163,0.1071399,93306.0,93305.0,0.001]
[1745507881569,0.4679399,93306.0,93305.0,0.001]
[1745507881872,0.9679399,93306.0,93305.0,0.001]
[1745507882465,0.1071422,93304.0,93303.0,0.00535886]
[1745507882668,0.1071422,93304.0,93303.0,6e-08]
[1745507883072,0.1557422,93304.0,93303.0,6e-08]
[1745507883461,0.6557422,93304.0,93303.0,6e-08]
[1745507883970,0.6567422,93304.0,93303.0,6e-08]
[1745507885473,0.76391821,93304.0,93303.0,6e-08]
[1745507885775,0.76491821,93304.0,93303.0,6e-08]
[1745507888065,1.12949325,93304.0,93303.0,6e-08]
[1745507888266,0.1071456,93301.0,93300.0,0.03675106]
[1745507888779,0.1071502,93297.0,93270.0,0.0535904]
[1745507889077,0.4679502,93297.0,93281.0,0.0938]
[1745507889274,0.5751342,93297.0,93296.0,5e-08]
[1745507889469,1.0751342,93297.0,93296.0,5e-08]
[1745507889782,0.1071594,93289.0,93269.0,0.0938]
[1745507889970,0.5435194,93289.0,93269.0,0.0938]
[1745507890574,0.6336194,93289.0,93269.0,0.0938]
[1745507890769,0.6336194,93289.0,93276.0,0.0535868]
[1745507890965,0.6336194,93289.0,93269.0,0.4546]
[1745507890966,0.001,93297.0,93296.0,0.1071514]
[1745507891168,0.001,93297.0,93296.0,0.6079514]
[1745507891466,0.002,93297.0,93296.0,0.8579514]
[1745507891666,0.07556,93310.0,93297.0,0.053575]
[1745507891876,0.07556,93310.0,93309.0,0.1071365]
[1745507892178,0.1071342,93312.0,93311.0,0.1071335]
[1745507892378,0.00270848,93327.0,93323.0,0.0535602]
[1745507892569,0.00270848,93327.0,93326.0,0.1071169]
[1745507892765,0.10982428,93327.0,93326.0,0.0939]
[1745507892979,0.10982428,93327.0,93326.0,0.2239]
[1745507893567,0.1182158,93327.0,93326.0,0.0939]
[1745507894174,0.6182158,93327.0,93326.0,0.0939]
[1745507894674,0.6182158,93327.0,93326.0,0.2239]
[1745507894875,0.6152158,93327.0,93326.0,0.2249]
[1745507895074,0.6222158,93327.0,93326.0,0.2249]
[1745507895377,0.1222158,93327.0,93326.0,0.2249]
[1745507896568,0.1222158,93327.0,93326.0,0.0949]
[1745507897685,0.1222158,93327.0,93326.0,1e-07]
[1745507900074,0.1222158,93327.0,93326.0,1e-07]
[1745507901982,0.6222158,93327.0,93326.0,1e-07]
[1745507903078,0.9830158,93327.0,93326.0,1e-07]
[1745507904175,1.0901678,93327.0,93326.0,1e-07]
[1745507906183,0.1071652,93284.0,93283.0,0.00160796]
[1745507907381,0.4689652,93284.0,93283.0,0.00560796]
[1745507907989,0.4689652,93284.0,93283.0,0.00460796]
[1745507909282,0.1081652,93284.0,93283.0,0.25177426]
[1745507909488,0.001,93284.0,93283.0,0.58897426]
[1745507909787,0.1081652,93284.0,93283.0,0.58897426]
[1745507910086,0.1081652,93284.0,93283.0,0.65380796]
[1745507910385,0.1081652,93284.0,93283.0,0.76097426]
[1745507910787,0.1081652,93284.0,93283.0,0.51097426]
[1745507911085,0.1081652,93284.0,93283.0,0.40380796]
[1745507911288,0.1081652,93284.0,93283.0,0.51097426]
[1745507911686,0.1081652,93284.0,93283.0,0.40380796]
[1745507911892,0.1081652,93284.0,93283.0,0.51097426]
[1745507912374,0.1081652,93284.0,93283.0,0.40380796]
[1745507912780,0.1081652,93284.0,93283.0,0.17660796]
[1745507913081,0.1081652,93284.0,93283.0,0.00460796]
[1745507913478,0.1081652,93284.0,93283.0,0.12140796]
[1745507913882,0.1081652,93284.0,93283.0,0.37857426]
[1745507914090,0.1081652,93284.0,93283.0,0.27140796]
[1745507914286,0.1081652,93284.0,93283.0,0.12140796]
[1745507915389,0.6737652,93284.0,93283.0,0.12140796]
[1745507916790,0.6081652,93284.0,93283.0,0.37857426]
[1745507917579,0.9689652,93284.0,93283.0,0.12140796]
[1745507919001,1.0348652,93284.0,93283.0,0.12140796]
[1745507920888,0.9689652,93284.0,93283.0,0.12140796]
[1745507921091,0.6081652,93284.0,93283.0,0.26140796]
[1745507921682,0.6081652,93284.0,93283.0,0.12140796]
[1745507922292,0.9689652,93284.0,93283.0,0.12140796]
[1745507922995,1.0327652,93284.0,93283.0,0.12140796]
[1745507923989,1.0327652,93284.0,93283.0,0.27140796]
[1745507924387,0.6719652,93284.0,93283.0,0.12140796]
[1745507924587,1.0327652,93284.0,93283.0,0.12140796]
[1745507925496,0.5327652,93284.0,93283.0,0.12140796]
[1745507927190,0.1719652,93284.0,93283.0,0.35857426]
[1745507927392,0.1081652,93284.0,93283.0,0.35857426]
[1745507927591,0.001,93284.0,93283.0,0.35857426]
[1745507928402,0.1081652,93284.0,93283.0,0.53057426]
[1745507929488,0.1081652,93284.0,93283.0,0.40057426]
[1745507929790,0.1081652,93284.0,93283.0,0.41340796]
[1745507929990,0.1081652,93284.0,93283.0,0.29340796]
[1745507930294,0.1081652,93284.0,93283.0,0.12140796]
[1745507930790,0.2373652,93284.0,93283.0,0.12140796]
[1745507931294,0.7373652,93284.0,93283.0,0.12140796]
[1745507931491,0.6752652,93284.0,93283.0,0.12140796]
[1745507931687,0.6752652,93284.0,93283.0,0.25140796]
[1745507931886,0.6081652,93284.0,93283.0,0.35857426]
[1745507932097,0.501,93284.0,93283.0,0.35857426]
[1745507932400,0.6081652,93284.0,93283.0,0.35857426]
[1745507932786,0.1081652,93284.0,93283.0,0.35857426]
[1745507933602,0.001,93284.0,93283.0,0.35857426]
[1745507934106,0.07552,93287.0,93286.0,0.1071629]
[1745507934292,0.1826817,93287.0,93286.0,0.2471629]
[1745507934791,0.1826817,93287.0,93286.0,0.2271629]
[1745507935203,0.1071617,93287.0,93286.0,0.3991629]
[1745507935393,0.0535802,93289.0,93288.0,0.1071606]
[1745507935595,0.1607365,93291.0,93290.0,0.1071583]
[1745507935790,0.1607365,93291.0,93290.0,0.2271583]
[1745507936300,0.1607365,93291.0,93290.0,0.2064]
[1745507936612,0.1607365,93291.0,93290.0,0.3135583]
[1745507936906,0.1617365,93291.0,93290.0,0.2752]
[1745507937101,0.1617365,93291.0,93290.0,0.3833583]
[1745507937310,0.1627365,93291.0,93290.0,0.002]
[1745507937695,0.2957365,93291.0,93290.0,0.002]
[1745507938095,0.2957365,93291.0,93290.0,0.2191583]
[1745507938306,0.2271365,93291.0,93290.0,0.2191583]
[1745507938695,0.2271365,93291.0,93290.0,0.112]
[1745507938896,0.2271365,93291.0,93290.0,0.1758]
[1745507940103,0.2271365,93291.0,93290.0,0.2829583]
[1745507940511,0.2271365,93291.0,93290.0,0.1758]
[1745507940801,0.2271365,93291.0,93290.0,0.0658]
[1745507941104,0.2271365,93291.0,93290.0,0.001]
[1745507941509,0.7271365,93291.0,93290.0,0.001]
[1745507942208,1.0879365,93291.0,93290.0,0.001]
[1745507942409,0.1071847,93267.0,93258.0,0.3608]
[1745507942812,0.1071904,93262.0,93255.0,0.00536161]
[1745507943604,0.2405904,93262.0,93255.0,0.00536161]
[1745507944709,0.2405904,93262.0,93261.0,0.28140888]
[1745507944911,0.7405904,93262.0,93261.0,0.28140888]
[1745507945205,0.7405904,93262.0,93261.0,0.12]
[1745507945407,0.1071962,93257.0,93256.0,0.1255]
[1745507945611,0.1071962,93257.0,93256.0,0.192]
[1745507945811,0.1071962,93257.0,93256.0,0.2991973]
[1745507946005,0.1071962,93257.0,93256.0,0.192]
[1745507946314,0.1071962,93257.0,93256.0,0.062]
[1745507946612,0.1071973,93256.0,93255.0,0.00536161]
[1745507946805,0.2356973,93256.0,93255.0,0.00536161]
[1745507947315,0.1692973,93256.0,93255.0,0.31456011]
[1745507947810,0.1692973,93256.0,93255.0,0.20736161]
[1745507948013,0.1702973,93256.0,93255.0,0.20836161]
[1745507948403,0.1712973,93256.0,93255.0,0.20836161]
[1745507948806,0.1712973,93256.0,93255.0,0.00636161]
[1745507950107,0.6712973,93256.0,93255.0,0.00636161]
[1745507950505,0.7398973,93256.0,93255.0,0.00636161]
[1745507951910,0.8154173,93256.0,93255.0,0.00636161]
[1745507963122,0.7398973,93256.0,93255.0,0.00636161]
[1745507963425,0.8154173,93256.0,93255.0,0.00636161]
[1745507966221,0.57752,93256.0,93255.0,0.24356011]
[1745507966726,0.1847173,93256.0,93255.0,0.10636161]
[1745507966927,0.1847173,93256.0,93255.0,0.00636161]
[1745507967121,0.1847173,93256.0,93255.0,0.26746161]
[1745507967526,0.1847173,93256.0,93255.0,0.00636161]
[1745507968028,0.7471173,93256.0,93255.0,0.11636161]
[1745507968220,0.6715973,93256.0,93255.0,0.11636161]
[1745507969015,0.6715973,93256.0,93255.0,0.18106161]
[1745507969227,0.1715973,93256.0,93255.0,0.35306161]
[1745507970718,0.1715973,93256.0,93255.0,0.41616161]
[1745507971120,0.1715973,93256.0,93255.0,0.24416161]
[1745507971424,0.1715973,93256.0,93255.0,0.35136011]
[1745507971828,0.1091973,93256.0,93255.0,0.35136011]
[1745507972027,0.1091973,93256.0,93255.0,0.24416161]
[1745507972228,0.1091973,93256.0,93255.0,0.44616161]
[1745507973031,0.1091973,93256.0,93255.0,0.55336011]
[1745507974236,0.1091973,93256.0,93255.0,0.41336011]
[1745507974430,0.1091973,93256.0,93255.0,0.55336011]
[1745507975425,0.1091973,93256.0,93255.0,0.44616161]
[1745507975624,0.1091973,93256.0,93255.0,0.55336011]
[1745507976333,0.1091973,93256.0,93255.0,0.44616161]
[1745507976836,0.1091973,93256.0,93255.0,0.55336011]
[1745507977331,0.07552,93262.0,93261.0,0.1071916]
[1745507977535,0.1827104,93262.0,93261.0,0.2471916]
[1745507977934,0.1071904,93262.0,93261.0,0.3544156]
[1745507978131,0.1071904,93262.0,93261.0,0.6538156]
[1745507978327,0.1071868,93266.0,93263.0,0.0535944]
[1745507978527,0.1753847,93268.0,93267.0,0.1071847]
[1745507978727,0.1071847,93268.0,93267.0,0.2471847]
[1745507979234,0.1071847,93268.0,93267.0,0.4191847]
[1745507979432,0.1697847,93268.0,93267.0,0.4191847]
[1745507980339,0.1707847,93268.0,93267.0,0.4201847]
[1745507981336,0.1717847,93268.0,93267.0,0.174]
[1745507981540,0.2350847,93268.0,93267.0,0.174]
[1745507982138,0.2350847,93268.0,93267.0,0.002]
[1745507982539,0.7350847,93268.0,93267.0,0.002]
[1745507985141,0.8105647,93268.0,93267.0,0.002]
[1745507993645,0.502,93268.0,93267.0,0.4699847]
[1745507993849,0.0646,93277.0,93276.0,0.1071744]
[1745507994142,0.2898201,93281.0,93280.0,0.1071698]
[1745507994344,0.1826492,93281.0,93280.0,0.26073874]
[1745507994540,0.1290644,93281.0,93280.0,0.26073874]
[1745507994746,0.1290644,93281.0,93280.0,0.15356894]
[1745507994946,0.1290644,93281.0,93280.0,0.14]
[1745507995145,0.1290644,93281.0,93280.0,0.312]
[1745507995348,0.1290644,93281.0,93280.0,0.442]
[1745507995554,0.1320644,93281.0,93280.0,0.56283227]
[1745507996133,0.0565844,93281.0,93280.0,0.56283227]
[1745507996441,0.68533816,93296.0,93295.0,0.1071525]
[1745507996635,0.80351436,93296.0,93295.0,0.13]
[1745507997236,0.80351436,93296.0,93295.0,0.302]
[1745507997746,0.44771436,93296.0,93295.0,0.303]
[1745507998648,0.45571436,93296.0,93295.0,0.303]
[1745508000350,0.34855996,93296.0,93295.0,0.4101525]
[1745508000849,0.1847521,93296.0,93295.0,0.303]
[1745508001048,0.1847521,93296.0,93295.0,0.293]
[1745508001250,0.1847521,93296.0,93295.0,0.4001525]
[1745508001445,0.068,93311.0,93295.0,0.333]
[1745508001650,0.1071456,93302.0,93301.0,0.1607141]
[1745508001842,0.1071456,93302.0,93301.0,0.4549141]
[1745508002045,0.1071456,93302.0,93301.0,0.3477722]
[1745508002244,0.1733456,93302.0,93301.0,0.5197722]
[1745508002542,0.1733456,93302.0,93301.0,0.4662]
[1745508002943,0.1733456,93302.0,93301.0,0.5733456]
[1745508003145,0.1733456,93302.0,93301.0,0.4662]
[1745508003546,0.1733456,93302.0,93301.0,0.3062]
[1745508004261,0.1733456,93302.0,93301.0,0.4143456]
[1745508004560,0.1733456,93302.0,93301.0,0.5443456]
[1745508005151,0.1733456,93302.0,93301.0,0.4382]
[1745508005765,0.1733456,93302.0,93301.0,0.4392]
[1745508006254,0.1733456,93302.0,93301.0,0.3092]
[1745508006643,0.2321456,93302.0,93301.0,0.3092]
[1745508006954,0.2321456,93302.0,93301.0,0.175]
[1745508007250,0.1071606,93288.0,93287.0,0.0583]
[1745508007455,0.1071606,93288.0,93287.0,0.0683]
[1745508008452,0.1732606,93288.0,93287.0,0.0683]
[1745508008641,0.1742606,93288.0,93287.0,0.0723]
[1745508008842,0.1742606,93288.0,93287.0,0.0743]
[1745508010047,0.1742606,93288.0,93287.0,0.08222023]
[1745508011947,0.001,93288.0,93287.0,0.18938193]
[1745508012143,0.1081606,93288.0,93287.0,0.36138193]
[1745508013761,0.001,93288.0,93287.0,0.36138193]
[1745508014056,0.1826279,93299.0,93298.0,0.1071491]
[1745508014245,0.1071479,93299.0,93298.0,0.2571491]
[1745508014653,0.1071479,93299.0,93298.0,0.3841491]
[1745508015155,0.1081479,93299.0,93298.0,0.5561491]
[1745508015459,0.1071376,93308.0,93307.0,0.0535691]
[1745508015651,0.1668376,93308.0,93307.0,0.1935691]
[1745508016048,0.1668376,93308.0,93307.0,0.3180691]
[1745508016449,0.107133,93313.0,93310.0,0.1071353]
[1745508016648,0.1071342,93311.0,93310.0,0.2471353]
[1745508017248,0.1071342,93311.0,93310.0,0.4191353]
[1745508017848,0.1091342,93311.0,93310.0,0.4191353]
[1745508018564,0.1131342,93311.0,93310.0,0.4201353]
[1745508019562,0.006,93311.0,93310.0,0.4201353]
[1745508019763,0.1131342,93311.0,93310.0,0.4201353]
[1745508020267,0.1131342,93311.0,93310.0,0.2801353]
[1745508020563,0.1131342,93311.0,93310.0,0.4101353]
[1745508021660,0.1131342,93311.0,93310.0,0.173]
[1745508022161,0.1131342,93311.0,93310.0,0.001]
[1745508022364,0.2366342,93311.0,93310.0,0.001]
[1745508022559,0.1071606,93288.0,93280.0,0.01382946]
[1745508022760,0.1071686,93281.0,93280.0,0.01382946]
[1745508022948,0.1071686,93281.0,93280.0,0.13099926]
[1745508023152,0.1708681,93282.0,93281.0,0.1071686]
[1745508023465,0.1708681,93282.0,93281.0,0.3705686]